fUSD/lending_fUSD_20240224
["ID","MTS","AMOUNT","RATE_DAILY","PERIOD"]
[315093970,1708810293036,-500.0,0.00028767,2]
[315093971,1708810293045,-500.0,0.00028767,2]
[315093972,1708810293054,-500.0,0.00028767,2]
[315093973,1708810293063,-622.84671111,0.00028767,2]
[315093974,1708810293072,-500.0,0.00028767,2]
[315093975,1708810293081,-500.0,0.00028767,2]
[315093976,1708810293091,-500.0,0.00028767,2]
[315093977,1708810293100,-500.0,0.00028767,2]
[315093978,1708810293110,-500.0,0.00028767,2]
[315093979,1708810293118,-500.0,0.00028767,2]
[315093980,1708810293127,-500.0,0.00028767,2]
[315093981,1708810293136,-500.0,0.00028767,2]
[315093982,1708810293145,-500.0,0.00028767,2]
[315093983,1708810293155,-500.0,0.00028767,2]
[315093984,1708810293164,-500.0,0.00028767,2]
[315093985,1708810293174,-500.0,0.00028767,2]
[315093986,1708810293183,-500.0,0.00028767,2]
[315093987,1708810293194,-500.0,0.00028767,2]
[315093988,1708810293207,-500.0,0.00028767,2]
[315093989,1708810293219,-500.0,0.00028767,2]
[315093990,1708810293229,-500.0,0.00028767,2]
[315093991,1708810293239,-500.0,0.00028767,2]
[315093992,1708810293249,-500.0,0.00028767,2]
[315093993,1708810293260,-500.0,0.00028767,2]
[315093994,1708810293270,-500.0,0.00028767,2]
[315093995,1708810293280,-500.0,0.00028767,2]
[315093996,1708810293290,-500.0,0.00028767,2]
[315093997,1708810293300,-500.0,0.00028767,2]
[315093998,1708810293309,-521.65,0.00028767,2]
[315093999,1708810293319,-500.0,0.00028767,2]
[315094000,1708810293329,-500.0,0.00028767,2]
[315094001,1708810293339,-500.0,0.00028767,2]
[315094002,1708810293348,-500.0,0.00028767,2]
[315094003,1708810293357,-500.0,0.00028767,2]
[315094004,1708810293367,-500.0,0.00028767,2]
[315094005,1708810293377,-574.83,0.00028767,2]
[315094006,1708810293387,-500.0,0.00028767,2]
[315094007,1708810293397,-1865.83,0.00028767,2]
[315094008,1708810293408,-150.0,0.00028767,2]
[315094009,1708810293419,-500.0,0.00028767,2]
[315094010,1708810293428,-719.34,0.00028767,2]
[315094011,1708810293438,-208.23543244,0.00028767,2]
[315094012,1708810293448,-500.0,0.00028767,2]
[315094013,1708810293458,-500.0,0.00028767,2]
[315094014,1708810293468,-1620.46,0.00028767,2]
[315094015,1708810293477,-500.0,0.00028767,2]
[315094016,1708810293487,-500.0,0.00028767,2]
[315094017,1708810293497,-500.0,0.00028767,2]
[315094018,1708810293508,-525.36,0.00028767,2]
[315094019,1708810293519,-500.0,0.00028767,2]
[315094020,1708810293529,-589.1,0.00028767,2]
[315094021,1708810293538,-1249.24,0.00028767,2]
[315094022,1708810293547,-500.0,0.00028767,2]
[315094023,1708810293558,-4137.04,0.00028767,2]
[315094024,1708810293568,-500.0,0.00028767,2]
[315094025,1708810293579,-500.0,0.00028767,2]
[315094026,1708810293588,-1988.0,0.00028767,2]
[315094027,1708810293598,-500.0,0.00028767,2]
[315094028,1708810293608,-1254.4,0.00028767,2]
[315094029,1708810293618,-967.56,0.00028767,2]
[315094030,1708810293628,-500.0,0.00028767,2]
[315094031,1708810293637,-500.0,0.00028767,2]
[315094032,1708810293647,-965.13,0.00028767,2]
[315094033,1708810293657,-500.0,0.00028767,2]
[315094034,1708810293667,-3191.17,0.00028767,2]
[315094035,1708810293678,-500.0,0.00028767,2]
[315094036,1708810293688,-500.0,0.00028767,2]
[315094037,1708810293699,-1128.66,0.00028767,2]
[315094038,1708810293709,-909.75,0.00028767,2]
[315094039,1708810293720,-621.67546334,0.00028767,2]
[315094040,1708810293730,-500.0,0.00028767,2]
[315094041,1708810293740,-552.39,0.00028767,2]
[315094042,1708810293751,-593.85,0.00028767,2]
[315094043,1708810293761,-1113.17,0.00028767,2]
[315094044,1708810293770,-500.0,0.00028767,2]
[315094045,1708810293780,-4045.8,0.00028767,2]
[315094046,1708810293790,-1077.57,0.00028767,2]
[315094047,1708810293799,-500.0,0.00028767,2]
[315094048,1708810293808,-500.0,0.00028767,2]
[315094049,1708810293817,-500.0,0.00028767,2]
[315094050,1708810293827,-500.0,0.00028767,2]
[315094051,1708810293837,-3078.01,0.00028767,2]
[315094052,1708810293846,-500.0,0.00028767,2]
[315094053,1708810293855,-3378.46,0.00028767,2]
[315094054,1708810293865,-4414.52,0.00028767,2]
[315094055,1708810293875,-500.0,0.00028767,2]
[315094056,1708810293884,-3626.76,0.00028767,2]
[315094057,1708810293893,-500.0,0.00028767,2]
[315094058,1708810293903,-500.0,0.00028767,2]
[315094059,1708810293912,-3257.12,0.00028767,2]
[315094060,1708810293922,-500.0,0.00028767,2]
[315094061,1708810293931,-500.0,0.00028767,2]
[315094062,1708810293941,-539.18,0.00028767,2]
[315094063,1708810293951,-748.17,0.00028767,2]
[315094064,1708810293960,-5146.88,0.00028767,2]
[315094065,1708810293969,-500.0,0.00028767,2]
[315094066,1708810293979,-500.0,0.00028767,2]
[315094067,1708810293989,-1570.48,0.00028767,2]
[315094068,1708810293998,-500.0,0.00028767,2]
[315094069,1708810294008,-533.94935961,0.00028767,2]
[315094070,1708810294017,-500.0,0.00028767,2]
[315094071,1708810294027,-500.0,0.00028767,2]
[315094072,1708810294037,-500.0,0.00028767,2]
[315094073,1708810294046,-500.0,0.00028767,2]
[315094074,1708810294177,-500.0,0.00028767,2]
[315094075,1708810294187,-741.74,0.00028767,2]
[315094076,1708810294197,-500.0,0.00028767,2]
[315094077,1708810294209,-500.0,0.00028767,2]
[315094078,1708810294221,-500.0,0.00028767,2]
[315094079,1708810294231,-500.0,0.00028767,2]
[315094080,1708810294241,-720.57,0.00028767,2]
[315094081,1708810294250,-3824.68,0.00028767,2]
[315094082,1708810294261,-500.0,0.00028767,2]
[315094083,1708810294272,-500.0,0.00028767,2]
[315094084,1708810294282,-993.01,0.00028767,2]
[315094085,1708810294292,-862.0,0.00028767,2]
[315094086,1708810294303,-500.0,0.00028767,2]
[315094087,1708810294314,-500.0,0.00028767,2]
[315094088,1708810294324,-500.0,0.00028767,2]
[315094089,1708810294334,-500.0,0.00028767,2]
[315094090,1708810294344,-962.36,0.00028767,2]
[315094091,1708810294354,-500.0,0.00028767,2]
[315094092,1708810294364,-500.0,0.00028767,2]
[315094093,1708810294374,-677.57,0.00028767,2]
[315094094,1708810294384,-500.0,0.00028767,2]
[315094095,1708810294394,-661.48,0.00028767,2]
[315094096,1708810294405,-1493.01,0.00028767,2]
[315094097,1708810294415,-1197.16,0.00028767,2]
[315094098,1708810294425,-500.0,0.00028767,2]
[315094099,1708810294435,-500.0,0.00028767,2]
[315094100,1708810294445,-500.0,0.00028767,2]
[315094101,1708810294455,-500.0,0.00028767,2]
[315094102,1708810294465,-643.15,0.00028767,2]
[315094103,1708810294476,-1266.86,0.00028767,2]
[315094104,1708810294486,-1193.59,0.00028767,2]
[315094105,1708810294495,-624.93,0.00028767,2]
[315094106,1708810294505,-500.0,0.00028767,2]
[315094107,1708810294515,-500.0,0.00028767,2]
[315094108,1708810294526,-610.59,0.00028767,2]
[315094109,1708810294536,-500.0,0.00028767,2]
[315094110,1708810294546,-500.0,0.00028767,2]
[315094111,1708810294556,-500.0,0.00028767,2]
[315094112,1708810294566,-650.57,0.00028767,2]
[315094113,1708810294576,-617.61,0.00028767,2]
[315094114,1708810294585,-785.98,0.00028767,2]
[315094115,1708810294595,-688.7,0.00028767,2]
[315094116,1708810294606,-500.0,0.00028767,2]
[315094117,1708810294616,-3270.7,0.00028767,2]
[315094118,1708810294626,-509.37,0.00028767,2]
[315094119,1708810294640,-500.0,0.00028767,2]
[315094120,1708810294651,-500.0,0.00028767,2]
[315094121,1708810294661,-6318.14,0.00028767,2]
[315094122,1708810294671,-1746.14,0.00028767,2]
[315094123,1708810294682,-500.0,0.00028767,2]
[315094124,1708810294693,-500.0,0.00028767,2]
[315094125,1708810294703,-500.0,0.00028767,2]
[315094126,1708810294716,-500.0,0.00028767,2]
[315094127,1708810294728,-500.0,0.00028767,2]
[315094128,1708810294738,-500.0,0.00028767,2]
[315094129,1708810294747,-500.0,0.00028767,2]
[315094130,1708810294757,-755.98,0.00028767,2]
[315094131,1708810294767,-562.19,0.00028767,2]
[315094132,1708810294777,-500.0,0.00028767,2]
[315094133,1708810294787,-898.07,0.00028767,2]
[315094134,1708810294801,-630.58,0.00028767,2]
[315094135,1708810294811,-500.0,0.00028767,2]
[315094136,1708810294826,-557.45,0.00028767,2]
[315094137,1708810294836,-637.87,0.00028767,2]
[315094138,1708810294846,-500.0,0.00028767,2]
[315094139,1708810294856,-668.5,0.00028767,2]
[315094140,1708810294867,-500.0,0.00028767,2]
[315094141,1708810294877,-500.0,0.00028767,2]
[315094142,1708810294887,-509.26,0.00028767,2]
[315094143,1708810294897,-1377.18,0.00028767,2]
[315094144,1708810294907,-669.18,0.00028767,2]
[315094145,1708810294918,-500.0,0.00028767,2]
[315094146,1708810294928,-1798.49,0.00028767,2]
[315094147,1708810294938,-546.11108843,0.00028767,2]
[315094148,1708810294948,-1649.33,0.00028767,2]
[315094149,1708810294961,-574.79,0.00028767,2]
[315094150,1708810294971,-500.0,0.00028767,2]
[315094151,1708810294981,-500.0,0.00028767,2]
[315094152,1708810294991,-667.98,0.00028767,2]
[315094153,1708810295001,-500.0,0.00028767,2]
[315094154,1708810295011,-500.0,0.00028767,2]
[315094155,1708810295022,-500.0,0.00028767,2]
[315094156,1708810295033,-568.06,0.00028767,2]
[315094157,1708810295044,-500.0,0.00028767,2]
[315094158,1708810295055,-500.0,0.00028767,2]
[315094159,1708810295066,-1086.98,0.00028767,2]
[315094160,1708810295076,-1024.22,0.00028767,2]
[315094161,1708810295087,-1911.86,0.00028767,2]
[315094162,1708810295097,-754.1,0.00028767,2]
[315094163,1708810295108,-500.0,0.00028767,2]
[315094164,1708810295118,-454.68,0.00028767,2]
[315094165,1708810295129,-500.0,0.00028767,2]
[315094166,1708810295139,-500.0,0.00028767,2]
[315094167,1708810295150,-500.0,0.00028767,2]
[315094168,1708810295161,-1211.44,0.00028767,2]
[315094169,1708810295172,-500.0,0.00028767,2]
[315094170,1708810295182,-500.0,0.00028767,2]
[315094171,1708810295193,-214.43974215,0.00028767,2]
[315094172,1708810295205,-2683.79,0.00028767,2]
[315094173,1708810295220,-763.44,0.00028767,2]
[315094174,1708810295230,-761.74,0.00028767,2]
[315094175,1708810295242,-500.0,0.00028767,2]
[315094176,1708810295252,-500.0,0.00028767,2]
[315094177,1708810295263,-500.0,0.00028767,2]
[315094178,1708810295274,-500.0,0.00028767,2]
[315094179,1708810295285,-3791.77,0.00028767,2]
[315094180,1708810295295,-588.69383839,0.00028767,2]
[315094181,1708810295305,-558.0,0.00028767,2]
[315094182,1708810295314,-500.0,0.00028767,2]
[315094183,1708810295324,-656.92,0.00028767,2]
[315094184,1708810295335,-500.0,0.00028767,2]
[315094185,1708810295345,-650.49,0.00028767,2]
[315094186,1708810295355,-10336.27,0.00028767,2]
[315094187,1708810295366,-1232.51,0.00028767,2]
[315094188,1708810295377,-508.98939591,0.00028767,2]
[315094189,1708810295388,-759.92,0.00028767,2]
[315094190,1708810295398,-530.65,0.00028767,2]
[315094191,1708810295408,-500.0,0.00028767,2]
[315094192,1708810295419,-500.0,0.00028767,2]
[315094193,1708810295430,-1623.45,0.00028767,2]
[315094194,1708810295440,-869.76,0.00028767,2]
[315094195,1708810295450,-2066.73,0.00028767,2]
[315094196,1708810295461,-500.0,0.00028767,2]
[315094197,1708810295471,-500.0,0.00028767,2]
[315094198,1708810295482,-713.18,0.00028767,2]
[315094199,1708810295493,-2785.74,0.00028767,2]
[315094200,1708810295503,-500.0,0.00028767,2]
[315094201,1708810295513,-500.0,0.00028767,2]
[315094202,1708810295523,-1087.52,0.00028767,2]
[315094203,1708810295533,-500.0,0.00028767,2]
[315094204,1708810295543,-769.16,0.00028767,2]
[315094205,1708810295553,-794.25,0.00028767,2]
[315094206,1708810295563,-5728.28,0.00028767,2]
[315094207,1708810295573,-1094.48,0.00028767,2]
[315094208,1708810295583,-500.0,0.00028767,2]
[315094209,1708810295593,-950.08,0.00028767,2]
[315094210,1708810295603,-500.0,0.00028767,2]
[315094211,1708810295613,-1104.7,0.00028767,2]
[315094212,1708810295623,-4776.88,0.00028767,2]
[315094213,1708810295632,-500.0,0.00028767,2]
[315094214,1708810295642,-787.59,0.00028767,2]
[315094215,1708810295651,-1722.68,0.00028767,2]
[315094216,1708810295661,-1079.64,0.00028767,2]
[315094217,1708810295671,-500.0,0.00028767,2]
[315094218,1708810295682,-500.0,0.00028767,2]
[315094219,1708810295691,-500.0,0.00028767,2]
[315094220,1708810295701,-500.0,0.00028767,2]
[315094221,1708810295711,-500.0,0.00028767,2]
[315094222,1708810295721,-500.0,0.00028767,2]
[315094223,1708810295732,-545.78,0.00028767,2]
[315094224,1708810295741,-500.0,0.00028767,2]
[315094225,1708810295751,-870.54,0.00028767,2]
[315094226,1708810295760,-1404.99,0.00028767,2]
[315094227,1708810295770,-500.0,0.00028767,2]
[315094228,1708810295779,-500.0,0.00028767,2]
[315094229,1708810295788,-155.0,0.00028767,2]
[315094230,1708810295798,-500.0,0.00028767,2]
[315094231,1708810295808,-500.0,0.00028767,2]
[315094232,1708810295818,-540.96,0.00028767,2]
[315094233,1708810295827,-663.68,0.00028767,2]
[315094234,1708810295837,-500.0,0.00028767,2]
[315094235,1708810295847,-518.41,0.00028767,2]
[315094236,1708810295856,-584.76,0.00028767,2]
[315094237,1708810295866,-500.0,0.00028767,2]
[315094238,1708810295875,-1088.17,0.00028767,2]
[315094239,1708810295885,-500.0,0.00028767,2]
[315094240,1708810295894,-706.22,0.00028767,2]
[315094241,1708810295904,-703.51,0.00028767,2]
[315094242,1708810295914,-811.6,0.00028767,2]
[315094243,1708810295924,-653.11,0.00028767,2]
[315094244,1708810295935,-500.0,0.00028767,2]
[315094245,1708810295945,-1095.43,0.00028767,2]
[315094246,1708810295955,-515.89611564,0.00028767,2]
[315094247,1708810295966,-500.0,0.00028767,2]
[315094248,1708810295976,-618.19,0.00028767,2]
[315094249,1708810295986,-2081.06,0.00028767,2]
[315094250,1708810295996,-1162.71,0.00028767,2]
[315094251,1708810296006,-546.71204445,0.00028767,2]
[315094252,1708810296016,-500.0,0.00028767,2]
[315094253,1708810296026,-1409.4,0.00028767,2]
[315094254,1708810296035,-943.46,0.00028767,2]
[315094255,1708810296045,-500.0,0.00028767,2]
[315094256,1708810296054,-500.0,0.00028767,2]
[315094257,1708810296064,-500.0,0.00028767,2]
[315094258,1708810296073,-150.90088601,0.00028767,2]
[315094259,1708810296083,-500.0,0.00028767,2]
[315094260,1708810296093,-632.23,0.00028767,2]
[315094261,1708810296103,-500.0,0.00028767,2]
[315094262,1708810296113,-500.0,0.00028767,2]
[315094263,1708810296123,-500.0,0.00028767,2]
[315094264,1708810296133,-575.65,0.00028767,2]
[315094265,1708810296143,-473.55,0.00028822,2]
[315094266,1708810296154,-153.78621196,0.00028843,4]
[315094267,1708810296164,-12126.40161182,0.00028847,2]
[315094268,1708810296174,-1541.43165216,0.00028885,2]
[315094269,1708810296184,-5041.87986465,0.00028896,2]
[315094270,1708810296194,-304.0,0.000289,17]
[315094271,1708810296205,-159.21719904,0.0002896,4]
[315094272,1708810296218,-150.0,0.00028974,2]
[315094273,1708810296228,-1000.0,0.00029,2]
[315094274,1708810296238,-600.0,0.00029,30]
[315094275,1708810296248,-1350.0,0.00029,3]
[315094276,1708810296259,-4000.0,0.00029,2]
[315094277,1708810296269,-2480.63719818,0.0002901,4]
[315094278,1708810296279,-155.33050103,0.00029017,2]
[315094279,1708810296290,-151.99310252,0.00029032,2]
[315094280,1708810296299,-500.0,0.00029041,2]
[315094281,1708810296310,-500.0,0.00029041,2]
[315094282,1708810296320,-500.0,0.00029041,2]
[315094283,1708810296330,-500.0,0.00029041,2]
[315094284,1708810296339,-500.0,0.00029041,2]
[315094285,1708810296349,-621.28833757,0.00029041,2]
[315094286,1708810296359,-500.0,0.00029041,2]
[315094287,1708810296368,-500.0,0.00029041,2]
[315094288,1708810296378,-508.09,0.00029041,2]
[315094289,1708810296389,-500.0,0.00029041,2]
[315094290,1708810296398,-500.0,0.00029041,2]
[315094291,1708810296408,-500.0,0.00029041,2]
[315094292,1708810296418,-500.0,0.00029041,2]
[315094293,1708810296428,-500.0,0.00029041,2]
[315094294,1708810296438,-500.0,0.00029041,2]
[315094295,1708810296448,-532.73741973,0.00029041,2]
[315094296,1708810296457,-500.0,0.00029041,2]
[315094297,1708810296467,-488.60093159,0.00029041,2]
[315094298,1708810296477,-500.0,0.00029041,2]
[315094299,1708810296797,-500.0,0.00029041,2]
[315094300,1708810296807,-500.0,0.00029041,2]
[315094301,1708810296818,-500.0,0.00029041,2]
[315094302,1708810296835,-500.0,0.00029041,2]
[315094303,1708810296845,-500.0,0.00029041,2]
[315094304,1708810296854,-235.52163602,0.00029041,2]
[315094305,1708810296863,-500.0,0.00029041,2]
[315094306,1708810296873,-500.0,0.00029041,2]
[315094307,1708810296882,-500.0,0.00029041,2]
[315094308,1708810296892,-545.83,0.00029041,2]
[315094309,1708810296901,-546.97702018,0.00029041,2]
[315094310,1708810296911,-500.0,0.00029041,2]
[315094311,1708810296922,-500.0,0.00029041,2]
[315094312,1708810296932,-500.0,0.00029041,2]
[315094313,1708810296942,-500.0,0.00029041,2]
[315094314,1708810296952,-500.0,0.00029041,2]
[315094315,1708810296961,-500.0,0.00029041,2]
[315094316,1708810296971,-500.0,0.00029041,2]
[315094317,1708810296981,-500.0,0.00029041,2]
[315094318,1708810296990,-500.0,0.00029041,2]
[315094319,1708810296999,-500.0,0.00029041,2]
[315094320,1708810297009,-500.0,0.00029041,2]
[315094321,1708810297018,-500.0,0.00029041,2]
[315094322,1708810297028,-500.0,0.00029041,2]
[315094323,1708810297038,-500.0,0.00029041,2]
[315094324,1708810297048,-500.0,0.00029041,2]
[315094325,1708810297058,-500.0,0.00029041,2]
[315094326,1708810297067,-500.0,0.00029041,2]
[315094327,1708810297077,-367.12111509,0.00029041,2]
[315094328,1708810297086,-500.0,0.00029041,2]
[315094329,1708810297096,-500.0,0.00029041,2]
[315094330,1708810297105,-500.0,0.00029041,2]
[315094331,1708810297115,-520.29004961,0.00029041,2]
[315094332,1708810297124,-500.0,0.00029041,2]
[315094333,1708810297135,-595.95,0.00029041,2]
[315094334,1708810297145,-542.60854535,0.00029041,2]
[315094335,1708810297154,-500.0,0.00029041,2]
[315094336,1708810297164,-500.0,0.00029041,2]
[315094337,1708810297173,-500.0,0.00029041,2]
[315094338,1708810297183,-500.0,0.00029041,2]
[315094339,1708810297193,-500.0,0.00029041,2]
[315094340,1708810297202,-533.74,0.00029041,2]
[315094341,1708810297218,-500.0,0.00029041,2]
[315094342,1708810297227,-500.0,0.00029041,2]
[315094343,1708810297237,-500.0,0.00029041,2]
[315094344,1708810297246,-500.0,0.00029041,2]
[315094345,1708810297257,-1377.86,0.00029041,2]
[315094346,1708810297267,-500.0,0.00029041,2]
[315094347,1708810297276,-500.0,0.00029041,2]
[315094348,1708810297287,-500.0,0.00029041,2]
[315094349,1708810297297,-500.0,0.00029041,2]
[315094350,1708810297306,-500.0,0.00029041,2]
[315094351,1708810297315,-500.0,0.00029041,2]
[315094352,1708810297324,-500.0,0.00029041,2]
[315094353,1708810297334,-500.0,0.00029041,2]
[315094354,1708810297344,-500.0,0.00029041,2]
[315094355,1708810297353,-597.5150959,0.00029041,2]
[315094356,1708810297363,-525.48933808,0.00029041,2]
[315094357,1708810297372,-500.0,0.00029041,2]
[315094358,1708810297382,-550.02267041,0.00029041,2]
[315094359,1708810297392,-500.0,0.00029041,2]
[315094360,1708810297401,-550.06499985,0.00029041,2]
[315094361,1708810297411,-500.0,0.00029041,2]
[315094362,1708810297421,-500.0,0.00029041,2]
[315094363,1708810297430,-500.0,0.00029041,2]
[315094364,1708810297440,-516.33991176,0.00029041,2]
[315094365,1708810297449,-500.0,0.00029041,2]
[315094366,1708810297458,-500.0,0.00029041,2]
[315094367,1708810297468,-500.0,0.00029041,2]
[315094368,1708810297477,-500.0,0.00029041,2]
[315094369,1708810297487,-500.0,0.00029041,2]
[315094370,1708810297496,-500.0,0.00029041,2]
[315094371,1708810297505,-500.0,0.00029041,2]
[315094372,1708810297515,-563.43,0.00029041,2]
[315094373,1708810297525,-500.0,0.00029041,2]
[315094374,1708810297534,-500.0,0.00029041,2]
[315094375,1708810297544,-500.0,0.00029041,2]
[315094376,1708810297553,-500.0,0.00029041,2]
[315094377,1708810297563,-500.0,0.00029041,2]
[315094378,1708810297572,-500.0,0.00029041,2]
[315094379,1708810297582,-352.47153901,0.00029041,2]
[315094380,1708810297591,-500.0,0.00029041,2]
[315094381,1708810297601,-500.0,0.00029041,2]
[315094382,1708810297610,-500.0,0.00029041,2]
[315094383,1708810297619,-500.0,0.00029041,2]
[315094384,1708810297628,-500.0,0.00029041,2]
[315094385,1708810297638,-506.09,0.00029041,2]
[315094386,1708810297647,-500.0,0.00029041,2]
[315094387,1708810297657,-500.0,0.00029041,2]
[315094388,1708810297666,-500.0,0.00029041,2]
[315094389,1708810297676,-500.0,0.00029041,2]
[315094390,1708810297686,-500.0,0.00029041,2]
[315094391,1708810297695,-500.0,0.00029041,2]
[315094392,1708810297705,-500.0,0.00029041,2]
[315094393,1708810297714,-619.83,0.00029041,2]
[315094394,1708810297724,-500.0,0.00029041,2]
[315094395,1708810297733,-500.0,0.00029041,2]
[315094396,1708810297742,-500.0,0.00029041,2]
[315094397,1708810297752,-519.10574434,0.00029041,2]
[315094398,1708810297761,-500.0,0.00029041,2]
[315094399,1708810297771,-500.0,0.00029041,2]
[315094400,1708810297780,-507.42058351,0.00029041,2]
[315094401,1708810297790,-168.45932371,0.00029041,2]
[315094402,1708810297799,-500.0,0.00029041,2]
[315094403,1708810297809,-500.0,0.00029041,2]
[315094404,1708810297819,-500.0,0.00029041,2]
[315094405,1708810297828,-500.0,0.00029041,2]
[315094406,1708810297837,-500.0,0.00029041,2]
[315094407,1708810297849,-535.11,0.00029041,2]
[315094408,1708810297859,-500.0,0.00029041,2]
[315094409,1708810297869,-500.0,0.00029041,2]
[315094410,1708810297879,-500.0,0.00029041,2]
[315094411,1708810297888,-500.44,0.00029041,2]
[315094412,1708810297898,-500.0,0.00029041,2]
[315094413,1708810297907,-500.0,0.00029041,2]
[315094414,1708810297917,-500.0,0.00029041,2]
[315094415,1708810297926,-500.0,0.00029041,2]
[315094416,1708810297936,-500.0,0.00029041,2]
[315094417,1708810297945,-500.0,0.00029041,2]
[315094418,1708810297955,-500.0,0.00029041,2]
[315094419,1708810297965,-500.0,0.00029041,2]
[315094420,1708810297975,-500.0,0.00029041,2]
[315094421,1708810297984,-500.0,0.00029041,2]
[315094422,1708810297993,-720.75,0.00029041,2]
[315094423,1708810298003,-500.0,0.00029041,2]
[315094424,1708810298012,-500.0,0.00029041,2]
[315094425,1708810298022,-197.16447924,0.00029041,2]
[315094426,1708810298031,-500.0,0.00029041,2]
[315094427,1708810298041,-588.18033857,0.00029041,2]
[315094428,1708810298050,-1156.62,0.00029041,2]
[315094429,1708810298060,-500.0,0.00029041,2]
[315094430,1708810298070,-510.16,0.00029041,2]
[315094431,1708810298080,-851.9,0.00029041,2]
[315094432,1708810298089,-537.78708231,0.00029041,2]
[315094433,1708810298099,-500.0,0.00029041,2]
[315094434,1708810298108,-500.0,0.00029041,2]
[315094435,1708810298118,-500.0,0.00029041,2]
[315094436,1708810298127,-500.0,0.00029041,2]
[315094437,1708810298136,-665.27,0.00029041,2]
[315094438,1708810298146,-675.27,0.00029041,2]
[315094439,1708810298156,-869.07,0.00029041,2]
[315094440,1708810298164,-654.25,0.00029041,2]
[315094441,1708810298173,-500.0,0.00029041,2]
[315094442,1708810298183,-500.0,0.00029041,2]
[315094443,1708810298193,-555.37325923,0.00029041,2]
[315094444,1708810298202,-500.0,0.00029041,2]
[315094445,1708810298217,-500.0,0.00029041,2]
[315094446,1708810298226,-177.5154781,0.00029041,2]
[315094447,1708810298235,-500.0,0.00029041,2]
[315094448,1708810298245,-500.0,0.00029041,2]
[315094449,1708810298255,-500.0,0.00029041,2]
[315094450,1708810298264,-500.0,0.00029041,2]
[315094451,1708810298273,-500.0,0.00029041,2]
[315094452,1708810298283,-500.0,0.00029041,2]
[315094453,1708810298293,-500.0,0.00029041,2]
[315094454,1708810298303,-500.0,0.00029041,2]
[315094455,1708810298312,-500.0,0.00029041,2]
[315094456,1708810298322,-500.0,0.00029041,2]
[315094457,1708810298331,-500.0,0.00029041,2]
[315094458,1708810298341,-500.0,0.00029041,2]
[315094459,1708810298350,-500.0,0.00029041,2]
[315094460,1708810298359,-421.04931759,0.00029041,2]
[315094461,1708810298369,-558.02967208,0.00029041,2]
[315094462,1708810298379,-500.0,0.00029041,2]
[315094463,1708810298389,-500.0,0.00029041,2]
[315094464,1708810298398,-500.0,0.00029041,2]
[315094465,1708810298409,-284.01905872,0.00029041,2]
[315094466,1708810298418,-500.0,0.00029041,2]
[315094467,1708810298428,-500.0,0.00029041,2]
[315094468,1708810298437,-500.0,0.00029041,2]
[315094469,1708810298447,-500.0,0.00029041,2]